bitfinex/quotes_SOLUSD_20250308
["timestamp","ask_amount","ask_price","bid_price","bid_amount"]
[1741446361183,7.44526157,136.93,136.9,24.74017342]
[1741446361486,7.44526157,136.93,136.9,2.87644637]
[1741446362181,0.14216157,136.93,136.92,21.86372705]
[1741446362364,0.14216157,136.98,136.92,40.51337591]
[1741446362571,0.14216157,136.98,136.94,21.86372705]
[1741446362779,0.14216157,136.97,136.92,111.2963]
[1741446362976,0.14216157,136.97,136.93,21.86372705]
[1741446363487,0.14216157,136.97,136.94,21.86372705]
[1741446364694,0.14216157,136.97,136.93,104.9]
[1741446364998,7.44306157,136.97,136.93,126.76372705]
[1741446365395,21.86372705,136.95,136.9,2.87644637]
[1741446365704,0.14216157,136.93,136.9,2.87644637]
[1741446367202,0.14216157,136.92,136.9,2.87644637]
[1741446368900,0.14216157,136.92,136.9,2.90944637]
[1741446369200,29.30888862,136.93,136.9,2.90944637]
[1741446369505,7.44516157,136.93,136.9,2.90944637]
[1741446369806,29.30888862,136.93,136.9,2.90944637]
[1741446370103,47.56638862,136.93,136.9,2.90944637]
[1741446370301,0.14216157,136.91,136.9,2.90944637]
[1741446370879,0.14216157,136.92,136.9,2.90944637]
[1741446371203,29.30988862,136.91,136.9,2.90944637]
[1741446371401,7.44616157,136.91,136.9,2.90944637]
[1741446371574,7.44616157,136.91,136.9,4.637e-05]
[1741446371575,29.30988862,136.91,136.9,4.637e-05]
[1741446372098,129.15953748,136.91,136.9,4.637e-05]
[1741446372404,0.14216157,136.82,136.76,0.86850229]
[1741446372604,22.00588862,136.8,136.76,0.86850229]
[1741446372804,0.14216157,136.77,136.76,0.86850229]
[1741446373397,35.29669179,136.77,136.76,0.86850229]
[1741446373581,7.3103,136.8,136.76,0.86850229]
[1741446373582,35.29669179,136.78,136.76,0.86850229]
[1741446373905,35.29669179,136.78,136.72,36.66763251]
[1741446374086,42.05669179,136.78,136.72,141.56763251]
[1741446374414,0.14216157,136.75,136.71,35.15453022]
[1741446374702,35.29669179,136.75,136.69,35.15453022]
[1741446375089,35.15453022,136.74,136.67,108.7536915]
[1741446375300,0.14216157,136.71,136.67,108.7536915]
[1741446375486,0.14216157,136.71,136.67,3.8536915]
[1741446375687,0.14216157,136.71,136.67,39.00822172]
[1741446375884,0.14216157,136.72,136.68,35.15453022]
[1741446376116,0.14216157,136.72,136.69,35.15453022]
[1741446376433,0.14216157,136.73,136.7,35.15453022]
[1741446377002,7.04216157,136.76,136.72,35.15453022]
[1741446377610,0.14216157,136.76,136.72,35.15453022]
[1741446377822,0.14216157,136.77,136.72,35.15453022]
[1741446378121,0.14216157,136.75,136.71,35.15453022]
[1741446378428,0.14216157,136.73,136.68,140.05453022]
[1741446378633,0.14216157,136.73,136.68,35.15453022]
[1741446378815,7.04216157,136.73,136.68,35.15453022]
[1741446379498,7.04216157,136.73,136.69,35.15453022]
[1741446380837,7.04216157,136.73,136.67,116.0702915]
[1741446381005,35.29669179,136.71,136.67,2.2090915]
[1741446381208,0.14216157,136.7,136.67,2.2090915]
[1741446381400,35.29669179,136.68,136.67,2.2090915]
[1741446381612,85.29669179,136.68,136.67,2.2090915]
[1741446381816,35.29669179,136.68,136.67,2.2090915]
[1741446382134,35.29669179,136.68,136.57,37.15453022]
[1741446382135,50.0,136.6,136.51,6.64456843]
[1741446382294,1.1259,136.65,136.51,0.65]
[1741446382295,0.14216157,136.56,136.51,0.65]
[1741446382498,7.38216157,136.56,136.55,0.033]
[1741446382718,42.53669179,136.56,136.55,0.033]
[1741446383103,42.53669179,136.56,136.51,0.65]
[1741446383405,7.38216157,136.56,136.51,0.65]
[1741446383615,7.38216157,136.56,136.51,139.70453022]
[1741446383819,7.38216157,136.56,136.51,104.9]
[1741446384007,7.38216157,136.56,136.52,35.15453022]
[1741446384207,7.38216157,136.56,136.51,140.05453022]
[1741446384607,7.38216157,136.56,136.52,35.15453022]
[1741446384804,7.38216157,136.56,136.51,140.05453022]
[1741446385025,0.14216157,136.57,136.51,123.54964886]
[1741446385220,0.14216157,136.57,136.52,35.15453022]
[1741446385523,0.14216157,136.57,136.53,35.15453022]
[1741446385829,0.14216157,136.55,136.51,104.9]
[1741446386127,0.14216157,136.55,136.52,35.15453022]
[1741446386323,0.14216157,136.56,136.51,140.05453022]
[1741446386497,0.14216157,136.56,136.52,35.15453022]
[1741446386698,0.14216157,136.56,136.53,35.15453022]
[1741446386921,0.14216157,136.58,136.55,35.15453022]
[1741446387427,35.29669179,136.6,136.55,104.9]
[1741446387924,35.29669179,136.6,136.56,35.15453022]
[1741446387925,0.14216157,136.6,136.56,35.15453022]
[1741446388301,0.14216157,136.6,136.56,140.05453022]
[1741446389435,0.14216157,136.6,136.56,104.9]
[1741446389618,35.29669179,136.6,136.55,104.9]
[1741446389821,0.14216157,136.6,136.55,140.05453022]
[1741446391132,0.14216157,136.6,136.56,35.15453022]
[1741446391339,0.14216157,136.6,136.55,104.9]
[1741446391723,0.14216157,136.6,136.55,140.05453022]
[1741446392135,0.14216157,136.6,136.53,106.4317]
[1741446392331,0.14216157,136.6,136.54,18.64964886]
[1741446393037,0.14216157,136.6,136.53,141.58623022]
[1741446393336,0.14216157,136.6,136.54,18.64964886]
[1741446394112,0.14216157,136.62,136.56,18.64964886]
[1741446394313,0.14216157,136.62,136.6,35.15453022]
[1741446394514,0.14216157,136.62,136.61,35.15453022]
[1741446394942,0.14216157,136.65,136.6,104.9]
[1741446395118,0.14216157,136.6,136.55,53.80417908]
[1741446395320,0.14216157,136.6,136.55,123.54964886]
[1741446395645,7.46276157,136.6,136.55,123.54964886]
[1741446395809,0.14216157,136.6,136.55,158.70417908]
[1741446396018,7.46226157,136.61,136.55,158.70417908]
[1741446396420,42.61679179,136.61,136.55,158.70417908]
[1741446396735,42.61679179,136.61,136.55,140.05453022]
[1741446396919,42.61679179,136.61,136.55,104.9]
[1741446397118,42.61679179,136.61,136.54,140.05453022]
[1741446397336,0.14216157,136.59,136.54,35.15453022]
[1741446397509,0.14216157,136.59,136.55,35.15453022]
[1741446397840,7.46356157,136.59,136.54,35.15453022]
[1741446398538,0.14216157,136.59,136.55,35.15453022]
[1741446398757,0.14216157,136.59,136.56,35.15453022]
[1741446398939,0.14216157,136.59,136.55,35.15453022]
[1741446399759,0.14216157,136.6,136.55,35.15453022]
[1741446399948,7.46276157,136.6,136.54,140.05453022]
[1741446400354,0.14216157,136.6,136.55,35.15453022]
[1741446400541,0.14216157,136.61,136.58,35.15453022]
[1741446400846,0.14216157,136.61,136.58,140.05453022]
[1741446403860,0.14216157,136.61,136.59,35.15453022]
[1741446404161,0.14216157,136.64,136.6,35.15453022]
[1741446404462,0.14216157,136.64,136.61,35.15453022]
[1741446404651,0.14216157,136.65,136.61,35.15453022]
[1741446404958,0.14216157,136.65,136.61,140.05453022]
[1741446405265,0.14216157,136.67,136.62,53.80417908]
[1741446405431,0.14216157,136.67,136.62,123.54964886]
[1741446405631,35.29669179,136.67,136.62,140.05453022]
[1741446406047,0.14216157,136.67,136.62,140.05453022]
[1741446406938,0.14216157,136.67,136.63,53.80417908]
[1741446407140,0.14216157,136.68,136.64,35.15453022]
[1741446407954,7.45796157,136.69,136.64,35.15453022]
[1741446408158,0.14216157,136.69,136.64,35.15453022]
[1741446409060,0.14216157,136.69,136.64,140.05453022]
[1741446409246,0.14216157,136.69,136.66,35.15453022]
[1741446409561,0.14216157,136.69,136.65,35.15453022]
[1741446409773,0.14216157,136.69,136.66,35.15453022]
[1741446409954,0.03,136.67,136.65,53.80417908]
[1741446411071,0.03,136.67,136.64,140.05453022]
[1741446411872,0.03,136.67,136.64,35.15453022]
[1741446412158,0.17216157,136.67,136.64,158.70417908]
[1741446412360,0.17216157,136.67,136.65,35.15453022]
[1741446412560,0.03,136.67,136.65,35.15453022]
[1741446413141,0.03,136.67,136.66,35.15453022]
[1741446413338,0.03,136.67,136.64,123.54964886]
[1741446413339,0.03,136.67,136.65,35.15453022]
[1741446414900,0.03,136.67,136.66,18.64964886]
[1741446415197,0.03,136.67,136.66,53.80417908]
[1741446415769,0.03,136.67,136.66,18.64964886]
[1741446416488,0.03,136.67,136.66,123.54964886]
[1741446419188,0.03,136.67,136.66,158.70417908]
[1741446420512,0.03,136.67,136.66,166.02157908]
[1741446420700,0.03,136.73,136.67,106.4889]
[1741446420899,0.03,136.73,136.69,35.15453022]
[1741446421139,35.29669179,136.72,136.67,141.54343022]
[1741446421307,35.29669179,136.72,136.67,106.3889]
[1741446421489,35.29669179,136.72,136.67,141.54343022]
[1741446421827,0.14216157,136.72,136.67,141.54343022]
[1741446421986,0.14216157,136.72,136.68,35.15453022]
[1741446422187,0.17216157,136.73,136.69,35.15453022]
[1741446422620,0.17216157,136.73,136.72,35.15453022]
[1741446422785,0.03,136.73,136.72,139.92453022]
[1741446422989,0.03,136.73,136.72,158.57417908]
[1741446423207,0.03,136.73,136.72,123.41964886]
[1741446423404,0.03,136.73,136.72,145.38149527]
[1741446423605,0.03,136.73,136.72,126.73184641]
[1741446423907,0.03,136.73,136.72,104.77]
[1741446424501,0.03,136.73,136.72,126.73184641]
[1741446424916,0.03,136.73,136.72,145.38149527]
[1741446425319,0.03,136.73,136.72,158.56223938]
[1741446426617,0.03,136.73,136.72,165.87643938]
[1741446426823,0.03,136.73,136.72,158.56223938]
[1741446427495,0.14216157,136.83,136.76,123.41964886]
[1741446427696,0.14216157,136.83,136.79,35.14259052]
[1741446427928,0.14216157,136.83,136.79,139.91259052]
[1741446428095,35.28475209,136.84,136.79,139.91259052]
[1741446428430,0.14216157,136.84,136.8,35.14259052]
[1741446428677,0.14216157,136.85,136.81,35.14259052]
[1741446428925,0.14216157,136.85,136.81,104.77]
[1741446429512,35.14259052,136.83,136.81,104.77]
[1741446429720,0.14216157,136.82,136.81,104.77]
[1741446430334,0.14216157,136.83,136.81,104.77]
[1741446430717,0.14216157,136.81,136.77,104.77]
[1741446430907,0.14216157,136.81,136.77,139.91259052]
[1741446431110,35.28475209,136.81,136.76,104.77]
[1741446431306,35.28475209,136.81,136.75,139.91259052]
[1741446431507,0.14216157,136.8,136.76,53.79223938]
[1741446431817,0.14216157,136.8,136.76,35.14259052]
[1741446432028,0.14216157,136.81,136.76,35.14259052]
[1741446432437,0.14216157,136.81,136.78,53.79223938]
[1741446432615,0.14216157,136.81,136.79,35.14259052]
[1741446432814,0.14216157,136.83,136.79,104.77]
[1741446433120,42.59305209,136.83,136.79,104.77]
[1741446434122,7.45046157,136.83,136.79,104.77]
[1741446435639,0.03,136.81,136.79,104.77]
[1741446436002,0.03,136.81,136.79,139.91259052]
[1741446437699,0.03,136.81,136.79,104.77]
[1741446438621,35.31475209,136.81,136.79,104.77]
[1741446439002,7.45206157,136.8,136.79,104.77]
[1741446439202,0.14216157,136.79,136.75,139.91259052]
[1741446439614,0.14216157,136.79,136.76,35.14259052]
[1741446440203,6.95206157,136.8,136.76,35.14259052]
[1741446441144,35.14259052,136.79,136.75,104.77]
[1741446441802,35.14259052,136.79,136.74,104.77]
[1741446442214,0.14216157,136.78,136.74,104.77]
[1741446442419,0.14216157,136.76,136.74,104.77]
[1741446442812,0.14216157,136.76,136.74,139.91259052]
[1741446443014,0.14216157,136.77,136.74,139.91259052]
[1741446443607,0.14216157,136.77,136.72,123.41964886]
[1741446443824,0.14216157,136.77,136.73,35.14259052]
[1741446444328,0.14216157,136.77,136.74,35.14259052]
[1741446445233,7.45276157,136.79,136.75,21.9578416]
[1741446446129,0.14216157,136.79,136.75,126.7278416]
[1741446446326,0.14216157,136.79,136.76,21.9578416]
[1741446446527,0.14216157,136.79,136.76,126.7278416]
[1741446447036,21.9878416,136.81,136.76,126.7278416]
[1741446447037,0.14216157,136.8,136.77,21.9578416]
[1741446447735,0.14216157,136.8,136.76,126.7278416]
[1741446448034,0.17216157,136.81,136.76,126.7278416]
[1741446448222,0.14216157,136.79,136.76,126.7278416]
[1741446450237,0.14216157,136.78,136.76,104.77]
[1741446450739,0.14216157,136.78,136.76,126.7278416]
[1741446453137,0.14216157,136.79,136.76,126.7278416]
[1741446453442,0.14216157,136.79,136.77,21.9578416]
[1741446453623,0.14216157,136.8,136.77,126.7278416]
[1741446453823,0.14216157,136.8,136.78,21.9578416]
[1741446454145,0.17216157,136.81,136.78,21.9578416]
[1741446454519,7.48166157,136.81,136.78,21.9578416]
[1741446454915,7.48166157,136.81,136.78,104.77]
[1741446457637,0.03,136.81,136.78,126.7278416]
[1741446459436,0.03,136.81,136.8,21.9578416]
[1741446459644,0.17216157,136.81,136.8,104.77]
[1741446460216,0.03,136.81,136.8,104.77]
[1741446461120,0.03,136.81,136.8,126.7278416]
[1741446461432,0.17216157,136.81,136.79,104.77]
[1741446462423,0.03,136.81,136.79,104.77]
[1741446463148,0.17216157,136.81,136.79,104.77]
[1741446465346,7.45206157,136.8,136.79,104.77]
[1741446466355,0.14216157,136.79,136.78,145.37749046]
[1741446468650,0.14216157,136.79,136.77,21.9578416]
[1741446468850,0.14216157,136.79,136.78,40.60749046]
[1741446469034,0.14216157,136.79,136.78,145.37749046]
[1741446469240,0.14216157,136.8,136.78,145.37749046]
[1741446469445,0.14216157,136.8,136.79,21.9578416]
[1741446469963,0.14216157,136.79,136.78,145.37749046]
[1741446470642,0.14216157,136.79,136.78,104.77]
[1741446470831,0.14216157,136.79,136.78,123.45264886]
[1741446471441,0.14216157,136.79,136.78,104.803]
[1741446471729,0.14216157,136.79,136.78,0.033]
[1741446471935,7.45256157,136.79,136.78,0.033]
[1741446486270,0.14216157,136.79,136.78,14.08485323]
[1741446486565,0.14216157,136.79,136.78,137.50450209]
[1741446487252,0.14216157,136.79,136.78,104.803]
[1741446490578,0.14216157,136.79,136.78,123.45264886]
[1741446491169,0.14216157,136.79,136.78,104.803]
[1741446495079,0.14216157,136.79,136.78,123.45264886]
[1741446495280,0.14216157,136.79,136.78,144.81550209]
[1741446495471,0.14216157,136.79,136.78,152.84010209]
[1741446498273,0.03,136.8,136.79,18.64964886]
[1741446498585,0.03,136.8,136.79,33.79735893]
[1741446499181,0.03,136.8,136.79,32.70150209]
[1741446499483,0.03,136.8,136.79,18.64964886]
[1741446499855,0.03,136.8,136.79,123.41964886]
[1741446500060,0.03,136.8,136.78,0.033]
[1741446500682,0.03,136.8,136.78,14.08485323]
[1741446501678,0.03,136.8,136.78,21.39575323]
[1741446501879,0.03,136.8,136.79,14.05185323]
[1741446502082,0.03,136.8,136.79,137.50150209]
[1741446503108,0.03,136.8,136.79,145.16300209]
[1741446504185,0.03,136.8,136.79,152.47340209]
[1741446504675,0.03,136.81,136.8,123.41964886]
[1741446504879,0.03,136.81,136.8,131.31535456]
[1741446505068,0.03,136.87,136.81,18.64964886]
[1741446505387,0.03,136.87,136.86,18.64964886]
[1741446505574,0.03,136.87,136.86,137.47150209]
[1741446505773,0.03,136.87,136.86,123.41964886]
[1741446506089,0.03,136.87,136.86,104.77]
[1741446509275,0.03,136.87,136.86,137.47150209]
[1741446511777,0.03,136.87,136.86,144.77820209]
[1741446514176,0.03,136.87,136.86,146.42260209]
[1741446514571,0.03,136.91,136.88,18.64964886]
[1741446514773,0.03,136.91,136.9,14.05185323]
[1741446515489,0.03,136.91,136.9,32.70150209]
[1741446515793,0.03,136.91,136.9,144.22150209]
[1741446516504,0.03,136.91,136.9,208.34491501]
[1741446516710,0.03,136.94,136.91,18.64964886]
[1741446516884,0.03,136.94,136.93,32.70150209]
[1741446518186,0.03,136.94,136.93,38.51318618]
[1741446518598,0.03,136.97,136.95,18.64964886]
[1741446518909,0.03,136.97,136.96,39.46150209]
[1741446519674,0.03,136.97,136.96,150.60830209]
[1741446521103,0.03,136.97,136.96,157.90970209]
[1741446521489,0.03,136.97,136.96,150.58830209]
[1741446522901,0.03,136.97,136.96,157.88970209]
[1741446526599,0.03,137.01,136.99,18.64964886]
[1741446526805,0.03,137.01,137.0,33.79576418]
[1741446527127,0.03,137.01,137.0,41.09496418]
[1741446527518,0.03,137.01,137.0,145.80496418]
[1741446527721,0.03,137.01,137.0,144.71070209]
[1741446528536,0.03,137.01,137.0,137.41150209]
[1741446528721,0.03,137.01,137.0,123.35964886]
[1741446529242,0.03,137.01,137.0,18.64964886]
[1741446529544,0.03,137.01,136.99,18.64964886]
[1741446530731,14.08185323,137.01,136.97,18.64964886]
[1741446530932,0.14216157,137.0,136.97,18.64964886]
[1741446531435,0.14216157,136.98,136.96,18.64964886]
[1741446531635,0.14216157,136.98,136.96,123.44964886]
[1741446532139,7.44156157,137.0,136.96,145.34174396]
[1741446532932,0.17216157,137.01,136.98,21.8920951]
[1741446533119,0.17216157,137.01,136.99,18.64964886]
[1741446533318,7.47096157,137.01,136.99,18.64964886]
[1741446533528,7.47096157,137.01,136.98,18.64964886]
[1741446533740,29.36305667,137.01,136.97,18.64964886]
[1741446533949,7.47096157,137.01,136.97,18.64964886]
[1741446537444,7.47096157,137.01,136.97,40.54174396]
[1741446537856,7.47096157,137.01,136.97,18.64964886]
[1741446539348,7.47096157,137.01,136.97,40.54174396]
[1741446540650,7.47096157,137.01,136.97,18.64964886]
[1741446540844,7.47096157,137.01,136.96,126.7250951]
[1741446540845,0.14216157,136.99,136.96,104.833]
[1741446541553,0.14216157,137.0,136.97,18.64964886]
[1741446542924,0.17216157,137.01,136.97,18.64964886]
[1741446543125,0.14216157,136.99,136.97,18.64964886]
[1741446543747,0.14216157,137.0,136.97,18.64964886]
[1741446543955,0.14216157,137.0,136.99,18.64964886]
[1741446544855,0.03,137.01,136.99,40.54174396]
[1741446545079,0.03,137.01,137.0,40.54174396]
[1741446546846,0.03,137.01,137.0,152.64094396]
[1741446548253,0.03,137.01,137.0,145.34174396]
[1741446550377,0.03,137.01,137.0,104.8]
[1741446550664,22.06425667,137.01,137.0,104.8]
[1741446551167,0.17216157,137.01,137.0,104.8]
[1741446551537,7.47086157,137.01,137.0,104.8]
[1741446553068,7.47086157,137.01,136.98,18.64964886]
[1741446554061,7.47086157,137.01,136.98,40.54174396]
[1741446557251,0.03,137.01,136.98,32.65598109]
[1741446557576,0.03,137.01,137.0,14.00633223]
[1741446558461,0.14216157,137.0,136.99,14.00633223]
[1741446558773,0.14216157,137.0,136.99,18.64964886]
[1741446559071,0.14216157,137.0,136.99,123.44964886]
[1741446559272,0.03,137.01,136.99,137.45598109]
[1741446559482,0.03,137.01,137.0,18.64964886]
[1741446559679,0.03,137.01,137.0,32.65598109]
[1741446560786,0.03,137.01,137.0,35.34434634]
[1741446560987,0.03,137.01,137.0,42.64354634]
[1741446561779,0.03,137.01,137.0,147.44354634]
[1741446561988,0.03,137.01,137.0,146.34918109]
[1741446562275,0.03,137.05,137.02,18.64964886]
[1741446562485,0.03,137.05,137.04,32.65598109]
[1741446563260,0.03,137.05,137.04,41.6060219]
[1741446563571,0.03,137.05,137.04,40.5119282]
[1741446564171,0.03,137.05,137.04,47.8090282]
[1741446564585,0.03,137.05,137.04,40.5119282]
[1741446565276,0.03,137.05,137.04,18.64964886]
[1741446565781,0.14216157,137.04,136.99,104.67]
[1741446565986,0.14216157,137.01,136.99,104.67]
[1741446566156,0.14216157,137.02,136.99,104.67]
[1741446566559,7.44036157,137.02,136.99,104.67]
[1741446567091,0.14216157,137.03,137.0,18.64964886]
[1741446567289,0.14216157,137.03,137.0,40.5119282]
[1741446567659,0.14216157,137.03,137.01,21.86227934]
[1741446567861,0.14216157,137.04,137.03,18.64964886]
[1741446568185,0.14216157,137.04,137.03,123.31964886]
[1741446568390,0.03,137.05,137.03,145.1819282]
[1741446568573,0.03,137.05,137.04,40.5119282]
[1741446569992,0.03,137.05,137.04,145.1819282]
[1741446571487,0.03,137.05,137.04,123.31964886]
[1741446572370,0.17216157,137.05,137.04,123.31964886]
[1741446572990,0.17216157,137.05,137.04,18.64964886]
[1741446573685,0.17216157,137.05,137.02,126.53227934]
[1741446573887,0.17216157,137.05,137.01,145.1819282]
[1741446574094,0.17216157,137.05,137.02,18.64964886]
[1741446574305,0.03,137.05,137.02,40.5119282]
[1741446576285,0.03,137.05,137.04,18.64964886]
[1741446576488,0.03,137.05,137.04,145.1819282]
[1741446576790,0.03,137.05,137.04,152.4790282]
[1741446577158,0.03,137.05,137.04,145.1819282]
[1741446577783,0.03,137.05,137.04,123.31964886]
[1741446577968,0.03,137.05,137.04,145.1819282]
[1741446578169,0.03,137.05,137.04,123.31964886]
[1741446578579,0.03,137.05,137.04,145.1819282]
[1741446580892,0.03,137.05,137.04,123.31964886]
[1741446582798,0.03,137.05,137.04,152.4790282]
[1741446583384,0.03,137.05,137.04,144.60813508]
[1741446583691,0.03,137.05,137.04,146.20733508]
[1741446584197,0.03,137.09,137.06,18.64964886]
[1741446584389,0.03,137.09,137.08,13.99138622]
[1741446584592,0.03,137.09,137.08,18.64964886]
[1741446585500,0.03,137.09,137.08,40.50615976]
[1741446585799,0.03,137.09,137.08,18.64964886]
[1741446587699,0.03,137.09,137.07,18.64964886]
[1741446588489,0.03,137.09,137.07,40.50615976]
[1741446588688,0.03,137.09,137.07,145.14615976]
[1741446589702,0.03,137.09,137.07,123.28964886]
[1741446591897,0.03,137.09,137.07,104.64]
[1741446594099,0.14216157,137.08,137.07,104.64]
[1741446594482,0.14216157,137.08,137.05,123.32264886]
[1741446594796,0.17216157,137.09,137.05,123.32264886]
[1741446596118,29.32347247,137.09,137.05,123.32264886]
[1741446599908,47.55957247,137.09,137.05,0.033]
[1741446600209,21.99867247,137.07,137.05,0.033]
[1741446600512,21.99867247,137.06,137.05,0.033]
[1741446600715,0.14216157,137.06,137.05,0.033]
[1741446603614,21.99867247,137.06,137.05,0.033]
[1741446603787,29.29467247,137.06,137.05,0.033]
[1741446604309,0.14216157,137.06,137.05,0.033]
[1741446607612,7.43816157,137.06,137.05,0.033]
[1741446611517,0.14216157,137.06,137.05,0.033]
[1741446616919,0.17216157,137.06,137.05,0.033]
[1741446622228,21.46511954,137.06,137.05,0.033]
[1741446627824,0.17216157,137.06,137.05,0.033]
[1741446628140,7.46816157,137.06,137.05,0.033]
[1741446628836,0.17216157,137.06,137.05,0.033]
[1741446632737,7.46816157,137.06,137.05,0.033]
[1741446638550,0.17216157,137.06,137.05,0.033]
[1741446639047,7.46816157,137.06,137.05,0.033]
[1741446642022,21.46511954,137.06,137.05,0.033]
[1741446648044,0.17216157,137.06,137.05,0.033]
[1741446650552,7.46816157,137.06,137.05,0.033]
[1741446657551,0.17216157,137.06,137.05,0.033]
[1741446659956,7.46816157,137.06,137.05,0.033]
[1741446660255,0.17216157,137.06,137.05,0.033]
[1741446661162,0.17216157,137.06,137.05,20.33494886]
[1741446663241,21.46511954,137.06,137.05,0.033]
[1741446676561,21.46511954,137.06,137.0,0.033]
[1741446676562,0.14216157,137.05,137.0,0.033]
[1741446676739,0.14216157,137.01,137.0,0.033]
[1741446676947,0.14216157,137.03,137.0,0.033]
[1741446677541,0.14216157,137.02,137.0,0.033]
[1741446680078,7.44036157,137.02,137.0,0.033]
[1741446680253,21.43731954,137.02,137.0,0.033]
[1741446681257,0.14216157,137.03,137.0,0.033]
[1741446682054,7.43976157,137.03,137.0,0.033]
[1741446682677,21.43671954,137.03,137.0,0.033]
[1741446691191,0.14216157,137.03,137.0,0.033]
[1741446691390,0.14216157,137.04,137.0,14.02995797]
[1741446691779,14.13911954,137.01,137.0,0.033]
[1741446692090,0.14216157,137.01,137.0,0.033]
[1741446692600,14.13911954,137.01,137.0,0.033]
[1741446692886,21.43781954,137.01,137.0,0.033]
[1741446695891,0.14216157,137.0,136.97,0.033]
[1741446696093,14.13911954,136.98,136.97,0.033]
[1741446696668,21.43941954,136.98,136.97,0.033]
[1741446697693,28.03941954,136.98,136.97,0.033]
[1741446698007,0.14216157,136.97,136.96,0.033]
[1741446698295,14.13911954,136.97,136.96,0.033]
[1741446699000,21.43991954,136.97,136.96,0.033]
[1741446706687,14.13911954,136.97,136.96,0.033]
[1741446707085,21.43991954,136.97,136.96,0.033]
[1741446709384,14.13911954,136.97,136.96,0.033]
[1741446711507,0.14216157,136.97,136.96,0.033]
[1741446711686,0.03,136.97,136.96,24.74714886]
[1741446712210,0.03,136.97,136.96,26.38264886]
[1741446712401,14.16911954,136.97,136.96,0.033]
[1741446713582,21.46991954,136.97,136.96,0.033]
[1741446713787,28.06991954,136.97,136.96,0.033]
[1741446715635,109.26991954,136.97,136.96,0.033]
[1741446718403,101.96911954,136.97,136.96,0.033]
[1741446719323,20.76911954,136.97,136.96,0.033]
[1741446719727,14.16911954,136.97,136.96,0.033]
[1741446720024,21.46991954,136.97,136.96,0.033]
[1741446721628,14.16911954,136.97,136.96,0.033]
[1741446722126,21.46991954,136.97,136.96,0.033]
[1741446723518,14.16911954,136.97,136.96,0.033]
[1741446724540,21.46991954,136.97,136.96,0.033]
[1741446728319,71.46991954,136.97,136.96,0.0001]
[1741446729536,21.46991954,136.97,136.96,0.0001]
[1741446730821,25.21334313,136.97,136.96,0.0001]
[1741446732154,75.21334313,136.97,136.96,0.0001]
[1741446732444,0.14216157,136.96,136.91,0.033]
[1741446732651,14.13911954,136.92,136.91,0.033]
[1741446734150,21.44261954,136.92,136.91,0.033]
[1741446737149,0.14216157,136.92,136.91,0.033]
[1741446737641,21.44261954,136.92,136.91,0.033]
[1741446750632,0.14216157,136.92,136.91,0.033]
[1741446752652,0.14216157,136.92,136.91,21.93455797]
[1741446753043,0.14216157,136.92,136.91,7.9376]
[1741446754839,7.44566157,136.92,136.91,1.5578]
[1741446755558,21.44261954,136.92,136.91,1.5578]
[1741446756651,0.14216157,136.92,136.91,1.5578]
[1741446760271,0.14216157,136.92,136.91,8.8618]
[1741446760441,0.14216157,136.92,136.91,152.39400683]
[1741446761443,0.03,136.96,136.91,152.39400683]
[1741446761658,0.03,136.96,136.93,13.99695797]
[1741446763445,0.03,136.96,136.93,21.29955797]
[1741446763647,0.03,136.96,136.94,13.99695797]
[1741446763847,0.03,136.96,136.95,18.64964886]
[1741446764172,0.03,136.96,136.95,40.47510683]
[1741446764349,0.03,136.96,136.95,21.82545797]
[1741446764870,0.03,136.96,136.95,145.17510683]
[1741446765453,0.03,136.96,136.95,152.47700683]
[1741446765654,0.03,136.97,136.95,152.47700683]
[1741446765950,0.03,136.97,136.96,32.64660683]
[1741446766856,0.14216157,137.04,136.98,18.64964886]
[1741446767042,0.14216157,137.04,137.0,13.99695797]
[1741446767466,0.17216157,137.05,137.01,13.99695797]
[1741446767670,0.17216157,137.05,137.01,118.69695797]
[1741446768569,0.03,137.05,137.02,13.99695797]
[1741446768951,0.03,137.05,137.02,15.63985797]
[1741446769355,0.03,137.05,137.03,32.64660683]
[1741446769560,0.03,137.05,137.04,13.99695797]
[1741446769764,0.03,137.05,137.04,118.69695797]
[1741446771552,0.03,137.05,137.04,137.34660683]